fUSD/lending_fUSD_20250327
["ID","MTS","AMOUNT","RATE_DAILY","PERIOD"]
[356739988,1743079281754,631.9401437,0.00032581,30]
[356739989,1743079282550,500.0,0.00032581,30]
[356739990,1743079282623,536.335535,0.00032581,30]
[356739991,1743079282932,500.0,0.00032581,30]
[356739992,1743079283054,618.66606133,0.00032581,30]
[356739993,1743079283177,500.0,0.00032581,30]
[356739994,1743079283432,544.33207512,0.00032581,30]
[356739995,1743079284095,500.0,0.00032581,30]
[356739996,1743079284133,500.0,0.00032581,30]
[356739997,1743079284388,500.0,0.00032581,30]
[356739998,1743079284429,520.85748667,0.00032581,30]
[356739999,1743079284626,500.0,0.00032581,30]
[356740000,1743079284846,500.0,0.00032581,30]
[356740001,1743079284875,500.0,0.00032581,30]
[356740002,1743079285123,500.0,0.00032581,30]
[356740003,1743079285156,500.0,0.00032581,30]
[356740004,1743079285703,500.0,0.00032581,30]
[356740005,1743079286083,648.70821576,0.00032581,30]
[356740006,1743079286542,500.0,0.00032581,30]
[356740007,1743079286595,298.63771735,0.00032581,30]
[356740008,1743079287961,500.0,0.00032581,30]
[356740009,1743079288220,500.0,0.00032581,30]
[356740010,1743079288638,500.0,0.00032581,30]
[356740011,1743079288676,500.0,0.00032581,30]
[356740012,1743079288708,500.43021643,0.00032581,30]
[356740013,1743079288813,518.88393846,0.00032581,30]
[356740014,1743079289062,156.31108726,0.00032581,30]
[356740015,1743079290781,500.0,0.00032581,30]
[356740016,1743079291043,461.82551958,0.00032581,30]
[356740017,1743079291286,500.0,0.00032581,30]
[356740018,1743079291413,549.37984552,0.00032581,30]
[356740019,1743079291526,500.0,0.00032581,30]
[356740020,1743079291748,500.0,0.00032581,30]
[356740021,1743079292030,569.03856052,0.00032581,30]
[356740022,1743079293427,500.0,0.00032581,30]
[356740023,1743079293632,500.0,0.00032581,30]
[356740024,1743079293670,500.0,0.00032581,30]
[356740025,1743079293910,501.18846754,0.00032581,30]
[356740026,1743079293947,173.23832315,0.00032581,30]
[356740027,1743079293977,511.68847127,0.00032581,30]
[356740028,1743079295246,500.0,0.00032581,30]
[356740029,1743079295498,500.0,0.00032581,30]
[356740030,1743079295661,591.58751645,0.00032581,30]
[356740031,1743079295746,580.56635487,0.00032581,30]
[356740032,1743079295966,500.0,0.00032581,30]
[356740033,1743079296215,502.24396367,0.00032581,30]
[356740034,1743079298472,223.14032807,0.00032581,30]
[356740035,1743079299385,515.484059,0.00032581,30]
[356740036,1743079300836,543.43233399,0.00032581,30]
[356740037,1743079301908,500.0,0.00032581,30]
[356740038,1743079301991,502.31910389,0.00032581,30]
[356740039,1743079302169,500.0,0.00032581,30]
[356740040,1743079302440,527.84469987,0.00032581,30]
[356740041,1743079302914,500.0,0.00032581,30]
[356740042,1743079303171,500.0,0.00032581,30]
[356740043,1743079303236,596.76515995,0.00032581,30]
[356740044,1743079303269,500.0,0.00032581,30]
[356740045,1743079303419,150.9290499,0.00032581,30]
[356740046,1743079303449,500.0,0.00032581,30]
[356740047,1743079303517,500.0,0.00032581,30]
[356740048,1743079303681,200.40684325,0.00032581,30]
[356740049,1743079303825,500.0,0.00032581,30]
[356740050,1743079304075,500.0,0.00032581,30]
[356740051,1743079304109,596.65,0.00032581,30]
[356740052,1743079304287,500.0,0.00032581,30]
[356740053,1743079304326,187.51809123,0.00032581,30]
[356740054,1743079304368,596.65,0.00032581,30]
[356740055,1743079304517,502.60190826,0.00032581,30]
[356740056,1743079304626,596.65,0.00032581,30]
[356740057,1743079304862,596.65,0.00032581,30]
[356740058,1743079305138,596.65,0.00032581,30]
[356740059,1743079305380,596.65,0.00032581,30]
[356740060,1743079305640,596.65,0.00032581,30]
[356740061,1743079305878,596.65,0.00032581,30]
[356740062,1743079306013,381.35264165,0.00032581,30]
[356740063,1743079306123,596.65,0.00032581,30]
[356740064,1743079306185,500.0,0.00032581,30]
[356740065,1743079306374,596.65,0.00032581,30]
[356740066,1743079306411,318.76246396,0.00032581,30]
[356740067,1743079306620,596.65,0.00032581,30]
[356740068,1743079306653,502.27631161,0.00032581,30]
[356740069,1743079306722,500.0,0.00032581,30]
[356740070,1743079306892,596.65,0.00032581,30]
[356740071,1743079306952,500.0,0.00032581,30]
[356740072,1743079307131,596.65,0.00032581,30]
[356740073,1743079307350,550.74186825,0.00032581,30]
[356740074,1743079307396,596.65,0.00032581,30]
[356740075,1743079307644,596.65,0.00032581,30]
[356740076,1743079307884,596.65,0.00032581,30]
[356740077,1743079307980,500.0,0.00032581,30]
[356740078,1743079308229,163.09573537,0.00032581,30]
[356740079,1743079308484,596.65,0.00032581,30]
[356740080,1743079308540,513.65568241,0.00032581,30]
[356740081,1743079308740,596.65,0.00032581,30]
[356740082,1743079308773,500.0,0.00032581,30]
[356740083,1743079308982,596.65,0.00032581,30]
[356740084,1743079309013,500.0,0.00032581,30]
[356740085,1743079309260,544.00504611,0.00032581,30]
[356740086,1743079309323,596.65,0.00032581,30]
[356740087,1743079309626,596.65,0.00032581,30]
[356740088,1743079309879,596.65,0.00032581,30]
[356740089,1743079310127,596.65,0.00032581,30]
[356740090,1743079310404,596.86234414,0.00032581,30]
[356740091,1743079311092,500.0,0.00032581,120]
[356740092,1743079311186,500.0,0.00032581,30]
[356740093,1743079311425,500.0,0.00032581,30]
[356740094,1743079311708,500.0,0.00032581,30]
[356740095,1743079311960,169.73146335,0.00032581,30]
[356740096,1743079312240,517.07974841,0.00032581,30]
[356740097,1743079313035,589.38030371,0.00032581,30]
[356740098,1743079313576,3294.06,0.00032581,30]
[356740099,1743079313899,3294.06,0.00032581,30]
[356740100,1743079314151,3294.06,0.00032581,30]
[356740101,1743079314458,3294.06,0.00032581,30]
[356740102,1743079314488,504.64981303,0.00032581,30]
[356740103,1743079314705,3294.06,0.00032581,30]
[356740104,1743079314897,500.0,0.00032581,30]
[356740105,1743079314938,3294.06,0.00032581,30]
[356740106,1743079315185,517.4194054,0.00032581,30]
[356740107,1743079315543,3294.06,0.00032581,30]
[356740108,1743079315682,1033.24,0.00032581,30]
[356740109,1743079315798,3294.06,0.00032581,30]
[356740110,1743079315920,1033.24,0.00032581,30]
[356740111,1743079316037,3294.06,0.00032581,30]
[356740112,1743079316162,1033.24,0.00032581,30]
[356740113,1743079316273,3294.06,0.00032581,30]
[356740114,1743079316408,1033.24,0.00032581,30]
[356740115,1743079316670,1033.24,0.00032581,30]
[356740116,1743079316721,3294.06,0.00032581,30]
[356740117,1743079316848,500.0,0.00032581,30]
[356740118,1743079316914,3294.06,0.00032581,30]
[356740119,1743079316969,1033.24,0.00032581,30]
[356740120,1743079317094,512.76858236,0.00032581,30]
[356740121,1743079317378,1033.24,0.00032581,30]
[356740122,1743079317410,3294.06,0.00032581,30]
[356740123,1743079317455,1033.24,0.00032581,30]
[356740124,1743079317630,3294.06,0.00032581,30]
[356740125,1743079317703,1033.24,0.00032581,30]
[356740126,1743079317871,3294.06,0.00032581,30]
[356740127,1743079317997,1033.24,0.00032581,30]
[356740128,1743079318051,500.0,0.00032581,30]
[356740129,1743079318106,3294.06,0.00032581,30]
[356740130,1743079318237,1033.24,0.00032581,30]
[356740131,1743079318341,3294.06,0.00032581,30]
[356740132,1743079318496,1033.24,0.00032581,30]
[356740133,1743079318605,3294.06,0.00032581,30]
[356740134,1743079318745,1033.24,0.00032581,30]
[356740135,1743079318863,3294.06,0.00032581,30]
[356740136,1743079318989,500.0,0.00032581,30]
[356740137,1743079319020,1033.24,0.00032581,30]
[356740138,1743079319105,3294.06,0.00032581,30]
[356740139,1743079319245,510.37053136,0.00032581,30]
[356740140,1743079319275,1033.24,0.00032581,30]
[356740141,1743079319385,3294.06,0.00032581,30]
[356740142,1743079319505,1033.24,0.00032581,30]
[356740143,1743079319651,3294.06,0.00032581,30]
[356740144,1743079319783,1033.24,0.00032581,30]
[356740145,1743079319932,3294.06,0.00032581,30]
[356740146,1743079319961,505.65606419,0.00032581,30]
[356740147,1743079320027,1033.24,0.00032581,30]
[356740148,1743079320190,3294.29424553,0.00032581,30]
[356740149,1743079320277,1033.24,0.00032581,30]
[356740150,1743079320553,1033.24,0.00032581,30]
[356740151,1743079320847,1033.24,0.00032581,30]
[356740152,1743079321089,1033.24,0.00032581,30]
[356740153,1743079321345,1033.24,0.00032581,30]
[356740154,1743079321597,1033.26696411,0.00032581,30]
[356740155,1743079321658,500.0,0.00032581,30]
[356740156,1743079321919,505.4489204,0.00032581,30]
[356740157,1743079324102,500.0,0.00032581,30]
[356740158,1743079324308,503.95181562,0.00032581,30]
[356740159,1743079324341,500.0,0.00032581,30]
[356740160,1743079324596,500.0,0.00032581,30]
[356740161,1743079324835,500.0,0.00032581,30]
[356740162,1743079325116,500.0,0.00032581,30]
[356740163,1743079325378,500.0,0.00032581,30]
[356740164,1743079325480,615.50694341,0.00032581,30]
[356740165,1743079325623,500.0,0.00032581,30]
[356740166,1743079325898,500.0,0.00032581,30]
[356740167,1743079326175,500.0,0.00032581,30]
[356740168,1743079326343,500.0,0.00032581,30]
[356740169,1743079326387,500.0,0.00032581,30]
[356740170,1743079326621,509.67374606,0.00032581,30]
[356740171,1743079326652,500.0,0.00032581,30]
[356740172,1743079326860,500.0,0.00032581,30]
[356740173,1743079326903,500.0,0.00032581,30]
[356740174,1743079327109,500.0,0.00032581,30]
[356740175,1743079327142,500.0,0.00032581,30]
[356740176,1743079327389,500.0,0.00032581,30]
[356740177,1743079327453,515.76474734,0.00032581,30]
[356740178,1743079327482,521.50665723,0.00032581,30]
[356740179,1743079327981,500.0,0.00032581,30]
[356740180,1743079328266,500.0,0.00032581,30]
[356740181,1743079328549,516.68692344,0.00032581,30]
[356740182,1743079328747,500.0,0.00032581,30]
[356740183,1743079328790,500.0,0.00032581,30]
[356740184,1743079329065,500.0,0.00032581,30]
[356740185,1743079329301,500.0,0.00032581,30]
[356740186,1743079329588,500.0,0.00032581,30]
[356740187,1743079329620,527.7467345,0.00032581,30]
[356740188,1743079329835,318.14871722,0.00032581,30]
[356740189,1743079330990,500.0,0.00032581,30]
[356740190,1743079331339,500.0,0.00032581,30]
[356740191,1743079331488,267.07005043,0.00032581,30]
[356740192,1743079333023,517.29273453,0.00032581,30]
[356740193,1743079333608,500.0,0.00032581,30]
[356740194,1743079333865,544.47025646,0.00032581,30]
[356740195,1743079334974,500.0,0.00032581,30]
[356740196,1743079335013,150.0,0.00015,30]
[356740197,1743079335226,529.89726408,0.00032581,30]
[356740198,1743079336662,500.0,0.00032581,30]
[356740199,1743079336946,244.94315873,0.00032581,30]
[356740200,1743079344323,500.0,0.00032581,30]
[356740201,1743079344617,170.5230625,0.00032581,30]
[356740202,1743079351936,419.68554705,0.00032581,30]
[356740203,1743079353542,500.0,0.00032581,30]
[356740204,1743079353790,500.0,0.00032581,30]
[356740205,1743079354041,500.0,0.00032581,30]
[356740206,1743079354285,500.0,0.00032581,30]
[356740207,1743079354524,500.0,0.00032581,30]
[356740208,1743079354766,509.53347415,0.00032581,30]
[356740209,1743079359056,585.51511436,0.00032581,30]
[356740210,1743079360937,526.78026901,0.00032581,30]
[356740211,1743079364122,186.77618851,0.00032581,30]
[356740212,1743079365083,516.78175646,0.00032581,30]
[356740213,1743079367332,500.0,0.00032581,30]
[356740214,1743079367572,544.49498474,0.00032581,30]
[356740215,1743079369845,546.02270731,0.00032581,30]
[356740216,1743079371640,623.3270719,0.00032581,30]
[356740217,1743079371873,615.41929737,0.00032581,30]
[356740218,1743079372153,-644.14466556,0.000146,5]
[356740219,1743079372177,-1200.0,0.000147,5]
[356740220,1743079372199,-1500.0,0.000148,5]
[356740221,1743079372221,-300.0,0.000149,5]
[356740222,1743079373630,562.87455,0.00032581,30]
[356740223,1743079376523,500.0,0.00032581,30]
[356740224,1743079376782,158.03549687,0.00032581,30]
[356740225,1743079380469,520.29503493,0.00032581,30]
[356740226,1743079381167,524.98298773,0.00032581,30]
[356740227,1743079381805,347.66528835,0.00032581,30]
[356740228,1743079383596,513.74634298,0.00032581,30]
[356740229,1743079385525,522.10946378,0.00032581,30]
[356740230,1743079386403,536.51667275,0.00032581,30]
[356740231,1743079387186,500.0,0.00032581,30]
[356740232,1743079387426,502.15606268,0.00032581,30]
[356740233,1743079388392,171.31207659,0.00032581,30]
[356740234,1743079389838,536.32284208,0.00032581,30]
[356740235,1743079390283,542.462739,0.00032581,30]
[356740236,1743079392003,530.26383853,0.00032581,30]
[356740237,1743079392177,150.0,0.00022,30]
[356740238,1743079392262,552.72842411,0.00032581,30]
[356740239,1743079394521,500.0,0.00032581,30]
[356740240,1743079394755,558.4863737,0.00032581,30]
[356740241,1743079396878,500.0,0.00032581,30]
[356740242,1743079397128,524.3366808,0.00032581,30]
[356740243,1743079397161,616.81854717,0.00032581,30]
[356740244,1743079400868,500.0,0.00032581,30]
[356740245,1743079401116,521.62765019,0.00032581,30]
[356740246,1743079402611,573.68361273,0.00032581,30]
[356740247,1743079408916,500.0,0.00032581,30]
[356740248,1743079409003,338.0570518,0.00032581,30]
[356740249,1743079409208,528.0927298,0.00032581,30]
[356740250,1743079411963,202.25891945,0.00032581,30]
[356740251,1743079413383,649.40959128,0.00032581,30]
[356740252,1743079413476,217.92189537,0.00032581,30]
[356740253,1743079415305,500.0,0.00032581,30]
[356740254,1743079415548,500.0,0.00032581,30]
[356740255,1743079415908,505.23886062,0.00032581,30]
[356740256,1743079417553,500.0,0.00032581,30]
[356740257,1743079417810,527.72098687,0.00032581,30]
[356740258,1743079421827,500.0,0.00032581,30]
[356740259,1743079422067,538.57704322,0.00032581,30]
[356740260,1743079423993,500.0,0.00032581,30]
[356740261,1743079424249,562.04842826,0.00032581,30]
[356740262,1743079426664,500.0,0.00032581,30]
[356740263,1743079426909,509.22452031,0.00032581,30]
[356740264,1743079428796,500.0,0.00032581,30]
[356740265,1743079429067,604.70065094,0.00032581,30]
[356740266,1743079431762,518.61461288,0.00032611,30]
[356740267,1743079432359,500.0,0.00032611,30]
[356740268,1743079432624,525.98695058,0.00032611,30]
[356740269,1743079434048,590.20304314,0.00032611,30]
[356740270,1743079434576,500.0,0.00032611,30]
[356740271,1743079434825,520.00281687,0.00032611,30]
[356740272,1743079435605,500.0,0.00032611,30]
[356740273,1743079435853,500.0,0.00032611,30]
[356740274,1743079436098,500.0,0.00032611,30]
[356740275,1743079436323,500.0,0.00032611,30]
[356740276,1743079436555,500.0,0.00032611,30]
[356740277,1743079436794,500.0,0.00032611,30]
[356740278,1743079436917,505.69634679,0.00032611,30]
[356740279,1743079437059,500.0,0.00032611,30]
[356740280,1743079437290,500.0,0.00032611,30]
[356740281,1743079437516,500.0,0.00032611,30]
[356740282,1743079437547,500.0,0.00032611,30]
[356740283,1743079437771,500.0,0.00032611,30]
[356740284,1743079437806,500.0,0.00032611,30]
[356740285,1743079438018,526.5765961,0.00032611,30]
[356740286,1743079438061,500.0,0.00032611,30]
[356740287,1743079438306,500.0,0.00032611,30]
[356740288,1743079438569,500.0,0.00032611,30]
[356740289,1743079438807,500.0,0.00032611,30]
[356740290,1743079439046,500.0,0.00032611,30]
[356740291,1743079439292,500.0,0.00032611,30]
[356740292,1743079439555,500.0,0.00032611,30]
[356740293,1743079439855,500.0,0.00032611,30]
[356740294,1743079440110,500.43544531,0.00032611,30]
[356740295,1743079441142,546.76086505,0.00032611,30]
[356740296,1743079443173,500.0,0.00032611,30]
[356740297,1743079443205,500.0,0.00032611,30]
[356740298,1743079443415,500.0,0.00032611,30]
[356740299,1743079443445,530.57110351,0.00032611,30]
[356740300,1743079443718,576.86298823,0.00032611,30]
[356740301,1743079446991,517.95466739,0.00032611,30]
[356740302,1743079447408,500.0,0.00032611,30]
[356740303,1743079447693,500.0,0.00032611,30]
[356740304,1743079447899,513.76354582,0.00032611,30]
[356740305,1743079447932,559.8999744,0.00032611,30]
[356740306,1743079448883,600.16827876,0.00032611,30]
[356740307,1743079449736,500.0,0.00032611,30]
[356740308,1743079449968,512.29150127,0.00032611,30]
[356740309,1743079455341,421.02785131,0.00032611,30]
[356740310,1743079458024,500.0,0.00032611,30]
[356740311,1743079458173,500.0,0.00032611,30]
[356740312,1743079458286,500.0,0.00032611,30]
[356740313,1743079458419,500.0,0.00032611,30]
[356740314,1743079458489,500.0,0.00032611,30]
[356740315,1743079458563,586.84018579,0.00032611,30]
[356740316,1743079458685,500.0,0.00032611,30]
[356740317,1743079458742,298.88589634,0.00032611,30]
[356740318,1743079458932,518.26321241,0.00032611,30]
[356740319,1743079460773,507.17049701,0.00032611,30]
[356740320,1743079462046,418.07170793,0.00032611,30]
[356740321,1743079462345,500.0,0.00032611,30]
[356740322,1743079462632,500.0,0.00032611,30]
[356740323,1743079462860,587.97664778,0.00032611,30]
[356740324,1743079464762,500.0,0.00032611,30]
[356740325,1743079465003,534.89986148,0.00032611,30]
[356740326,1743079467355,507.7643308,0.00032611,30]
[356740327,1743079467479,198.69183458,0.00032611,30]
[356740328,1743079472341,566.26391424,0.00032611,30]
[356740329,1743079482747,535.08247589,0.00032611,30]
[356740330,1743079482911,500.0,0.00032611,30]
[356740331,1743079483155,505.57651729,0.00032611,30]
[356740332,1743079487356,500.0,0.00032611,30]
[356740333,1743079487619,500.0,0.00032611,30]
[356740334,1743079487871,500.0,0.00032611,30]
[356740335,1743079488115,500.0,0.00032611,30]
[356740336,1743079488354,328.77093202,0.00032611,30]
[356740337,1743079493725,500.0,0.00032611,30]
[356740338,1743079494081,500.0,0.00032611,30]
[356740339,1743079494357,530.61675985,0.00032611,30]
[356740340,1743079496118,500.0,0.00032611,30]
[356740341,1743079496198,500.0,0.00032611,30]
[356740342,1743079496371,551.30702794,0.00032611,30]
[356740343,1743079496444,500.0,0.00032611,30]
[356740344,1743079496697,500.0,0.00032611,30]
[356740345,1743079496933,500.0,0.00032611,30]
[356740346,1743079497206,500.0,0.00032611,30]
[356740347,1743079497467,500.0,0.00032611,30]
[356740348,1743079497734,500.0,0.00032611,30]
[356740349,1743079497970,582.01621954,0.00032611,30]
[356740350,1743079498236,500.0,0.00032611,30]
[356740351,1743079498487,532.06680672,0.00032611,30]
[356740352,1743079500523,500.0,0.00032611,30]
[356740353,1743079500751,625.85196197,0.00032611,30]
[356740354,1743079502776,500.0,0.00032611,30]
[356740355,1743079503034,531.22107483,0.00032611,30]
[356740356,1743079505329,500.0,0.00032611,30]
[356740357,1743079505617,500.0,0.00032611,30]
[356740358,1743079505899,500.0,0.00032611,30]
[356740359,1743079506153,500.0,0.00032611,30]
[356740360,1743079506264,500.0,0.00032611,30]
[356740361,1743079506397,500.0,0.00032611,30]
[356740362,1743079506500,537.80706693,0.00032611,30]
[356740363,1743079506656,500.0,0.00032611,30]
[356740364,1743079506886,500.0,0.00032611,30]
[356740365,1743079507386,500.0,0.00032611,30]
[356740366,1743079507422,500.0,0.00032611,30]
[356740367,1743079507566,516.66346937,0.00032611,30]
[356740368,1743079507602,500.0,0.00032611,30]
[356740369,1743079507643,569.25472689,0.00032611,30]
[356740370,1743079507826,500.0,0.00032611,30]
[356740371,1743079507939,888.41,0.00032611,30]
[356740372,1743079508083,500.0,0.00032611,30]
[356740373,1743079508194,888.41,0.00032611,30]
[356740374,1743079508322,571.01047409,0.00032611,30]
[356740375,1743079508356,510.99635789,0.00032611,30]
[356740376,1743079508475,888.41,0.00032611,30]
[356740377,1743079508724,888.41,0.00032611,30]
[356740378,1743079508991,888.41,0.00032611,30]
[356740379,1743079509250,888.41,0.00032611,30]
[356740380,1743079509654,888.41,0.00032611,30]
[356740381,1743079510064,888.41,0.00032611,30]
[356740382,1743079510209,500.0,0.00032611,30]
[356740383,1743079510239,888.41,0.00032611,30]
[356740384,1743079510269,520.02811945,0.00032611,30]
[356740385,1743079510299,539.87729788,0.00032611,30]
[356740386,1743079510354,888.41,0.00032611,30]
[356740387,1743079510944,888.41,0.00032611,30]
[356740388,1743079511200,888.41,0.00032611,30]
[356740389,1743079511451,888.41,0.00032611,30]
[356740390,1743079511601,417.65326914,0.00032611,30]
[356740391,1743079511687,888.41,0.00032611,30]
[356740392,1743079511947,888.41,0.00032611,30]
[356740393,1743079512214,888.41,0.00032611,30]
[356740394,1743079512366,601.19011393,0.00032611,30]
[356740395,1743079512449,888.41,0.00032611,30]
[356740396,1743079512695,888.41,0.00032611,30]
[356740397,1743079512954,888.41,0.00032611,30]
[356740398,1743079513209,888.41,0.00032611,30]
[356740399,1743079513478,888.41,0.00032611,30]
[356740400,1743079513702,500.0,0.00032611,30]
[356740401,1743079513734,888.41,0.00032611,30]
[356740402,1743079513953,515.20490465,0.00032611,30]
[356740403,1743079514009,888.41,0.00032611,30]
[356740404,1743079514286,888.48471265,0.00032611,30]
[356740405,1743079514421,543.83809365,0.00032611,30]
[356740406,1743079514718,500.0,0.00032611,30]
[356740407,1743079515075,578.34531135,0.00032611,30]
[356740408,1743079515394,527.91944415,0.00032611,30]
[356740409,1743079515480,564.80783883,0.00032611,30]
[356740410,1743079517341,522.51012483,0.00032611,30]
[356740411,1743079517864,508.30637337,0.00032611,30]
[356740412,1743079519714,501.78014427,0.00032611,30]
[356740413,1743079521867,550.66260134,0.00032611,30]
[356740414,1743079522014,500.0,0.00032611,30]
[356740415,1743079522268,575.09260191,0.00032611,30]
[356740416,1743079522647,518.13483701,0.00032611,30]
[356740417,1743079524391,535.99847515,0.00032611,30]
[356740418,1743079524848,515.62247844,0.00032611,30]
[356740419,1743079525282,500.27969237,0.00032611,30]
[356740420,1743079526126,503.14927708,0.00032611,30]
[356740421,1743079526813,505.81733771,0.00032611,30]
[356740422,1743079528154,503.76569449,0.00032611,30]
[356740423,1743079528228,508.95414721,0.00032611,30]
[356740424,1743079528737,491.77052967,0.00032611,30]
[356740425,1743079529248,511.61500444,0.00032611,30]
[356740426,1743079530139,505.50793469,0.00032611,30]
[356740427,1743079531120,602.48,0.00032611,30]
[356740428,1743079531363,602.48,0.00032611,30]
[356740429,1743079531615,602.48,0.00032611,30]
[356740430,1743079531987,602.48,0.00032611,30]
[356740431,1743079532017,505.63027578,0.00032611,30]
[356740432,1743079532239,602.48,0.00032611,30]
[356740433,1743079532510,602.48,0.00032611,30]
[356740434,1743079532806,602.48,0.00032611,30]
[356740435,1743079533057,602.48,0.00032611,30]
[356740436,1743079533335,602.48,0.00032611,30]
[356740437,1743079533635,602.48,0.00032611,30]
[356740438,1743079533990,602.48,0.00032611,30]
[356740439,1743079534226,602.48,0.00032611,30]
[356740440,1743079534259,500.0,0.00032611,30]
[356740441,1743079534503,602.48,0.00032611,30]
[356740442,1743079534663,335.26632728,0.00032611,30]
[356740443,1743079534781,602.48,0.00032611,30]
[356740444,1743079535032,602.48,0.00032611,30]
[356740445,1743079535289,602.48,0.00032611,30]
[356740446,1743079535540,602.48,0.00032611,30]
[356740447,1743079535692,438.60665723,0.00032611,30]
[356740448,1743079535727,521.92054343,0.00032611,30]
[356740449,1743079535841,602.48,0.00032611,30]
[356740450,1743079535874,556.77713808,0.00032611,30]
[356740451,1743079536128,602.48,0.00032611,30]
[356740452,1743079536385,602.48,0.00032611,30]
[356740453,1743079536971,602.48,0.00032611,30]
[356740454,1743079537259,602.48,0.00032611,30]
[356740455,1743079537502,602.48,0.00032611,30]
[356740456,1743079537755,602.56,0.00032611,30]
[356740457,1743079537841,504.59114183,0.00032611,30]
[356740458,1743079537894,500.0,0.00032611,30]
[356740459,1743079538201,533.84559507,0.00032611,30]
[356740460,1743079539507,498.71661904,0.00032611,30]
[356740461,1743079539920,2274.62,0.00032611,30]
[356740462,1743079540038,546.8712649,0.00032611,30]
[356740463,1743079540133,524.04864729,0.00032611,30]
[356740464,1743079540169,2274.62,0.00032611,30]
[356740465,1743079540410,2274.62,0.00032611,30]
[356740466,1743079540670,2274.62,0.00032611,30]
[356740467,1743079541037,2274.62,0.00032611,30]
[356740468,1743079541207,2274.62,0.00032611,30]
[356740469,1743079541453,2274.62,0.00032611,30]
[356740470,1743079541727,2274.62,0.00032611,30]
[356740471,1743079541803,508.81881205,0.00032611,30]
[356740472,1743079541990,2274.62,0.00032611,30]
[356740473,1743079542074,636.87395986,0.00032611,30]
[356740474,1743079542611,2274.62,0.00032611,30]
[356740475,1743079542857,2274.62,0.00032611,30]
[356740476,1743079543115,2274.62,0.00032611,30]
[356740477,1743079543356,2274.62,0.00032611,30]
[356740478,1743079543605,2274.62,0.00032611,30]
[356740479,1743079543847,2274.62,0.00032611,30]
[356740480,1743079544087,2274.62,0.00032611,30]
[356740481,1743079544330,2274.62,0.00032611,30]
[356740482,1743079544577,2274.62,0.00032611,30]
[356740483,1743079544878,2274.62,0.00032611,30]
[356740484,1743079545125,2274.62,0.00032611,30]
[356740485,1743079545385,2274.62,0.00032611,30]
[356740486,1743079545634,2274.62,0.00032611,30]
[356740487,1743079545876,2274.62,0.00032611,30]